[Event "Slovakian-ch Youth 2022"]
[Site "Lubovna"]
[Date "2022.05.23"]
[Round "3.29"]
[White "Ziman, Damian"]
[Black "Ropovik, Samuel"]
[Result "1/2-1/2"]
[ECO "B61"]
[WhiteElo "1293"]
[BlackElo "1453"]
[Annotator "NA RC COMBH"]
[PlyCount "86"]
[EventDate "2022.05.22"]
[EventCountry "SVK"]
[SourceTitle "playchess.com"]
[Source "ChessBase"]
[SourceQuality "1"]
[TimeControl "40/5400+30:1800+30"]

1. e4 {[%emt 0:00:12]} c5 {[%emt 0:00:11]} 2. Nf3 {[%emt 0:00:13]} d6 {[%emt 0:00:38]} 3. d4 {[%emt 0:00:09]} cxd4 {[%emt 0:00:14]} 4. Nxd4 {[%emt 0:00:11]} Nf6 {[%emt 0:00:40]} 5. Nc3 {[%emt 0:00:15]} Nc6 {[%emt 0:00:47]} 6. Bg5 {[%emt 0:00:20]} Bd7 {[%emt 0:02:35]} 7. Qd2 {[%emt 0:00:18]} Rc8 {[%emt 0:01:22]} 8. O-O-O {[%emt 0:01:23]} Qa5 {[%emt 0:02:21]} 9. Bh4 {[%emt 0:08:19]} e6 {[%emt 0:06:44]} 10. Bc4 {[%emt 0:08:39]} Nxd4 {[%emt 0:26:01]} 11. Qxd4 {[%emt 0:00:13]} Be7 {[%emt 0:00:55]} 12. Bb3 {[%emt 0:02:07]} Bc6 {[%emt 0:05:35]} 13. f3 {[%emt 0:07:37]} O-O {[%emt 0:05:46]} 14. g4 {[%emt 0:16:23]} Rfd8 {[%emt 0:07:14]} 15. Bf2 {[%emt 0:08:11]} a6 {[%emt 0:10:22]} 16. Be1 {[%emt 0:04:13]} Qg5+ {[%emt 0:03:30]} 17. Kb1 {[%emt 0:02:02]} Qc5 {[%emt 0:02:14]} 18. Qd3 {[%emt 0:03:21]} Nd7 {[%emt 0:08:53]} 19. h4 {[%emt 0:02:51]} d5 {[%emt 0:02:49]} 20. exd5 {[%emt 0:06:12]} Nf6 {[%emt 0:01:28]} 21. Qe2 {[%emt 0:04:14]} Nxd5 {[%emt 0:01:58]} 22. Ne4 {[%emt 0:04:43]} Qe3 {[%emt 0:02:49]} 23. Qf1 {[%emt 0:05:27]} Nf6 {[%emt 0:03:55]} 24. Bd2 {[%emt 0:02:38]} Qb6 {[%emt 0:01:03]} 25. Nc3 {[%emt 0:02:46]} Qc7 {[%emt 0:02:00]} 26. Qg2 {[%emt 0:01:30]} b5 {[%emt 0:00:25]} 27. Ne2 {[%emt 0:00:46]} Qb7 {[%emt 0:00:24]} 28. Rhf1 {[%emt 0:00:50]} Bc5 {[%emt 0:00:58]} 29. Qh3 {[%emt 0:04:40]} Nd5 {[%emt 0:00:34]} 30. g5 {[%emt 0:00:30]} Qe7 {[%emt 0:00:19]} 31. h5 {[%emt 0:00:35]} e5 {[%emt 0:00:43]} 32. g6 {[%emt 0:00:20]} hxg6 {[%emt 0:00:30]} 33. hxg6 {[%emt 0:00:08]} fxg6 {[%emt 0:00:21]} 34. Ba5 {[%emt 0:00:47]} Rd7 {[%emt 0:00:34]} 35. Rh1 {[%emt 0:00:26]} Rf8 {[%emt 0:00:35]} 36. Qh7+ {[%emt 0:00:31]} Kf7 {[%emt 0:00:05]} 37. Rhg1 {[%emt 0:00:25]} Qf6 {[%emt 0:00:44]} 38. Nc3 {[%emt 0:00:47]} Bxg1 {[%emt 0:00:39]} 39. Nxd5 {[%emt 0:00:00]} Bxd5 {[%emt 0:00:00]} 40. Bxd5+ {[%emt 0:00:00]} Ke7 {[%emt 0:00:00]} 41. Bb4+ {[%emt 0:08:19]} Ke8 {[%emt 0:09:45]} 42. Bxf8 {[%emt 0:04:27]} Kxf8 {[%emt 0:00:30]} 43. Qh1 {[%emt 0:00:30]} Bb6 {[%emt 0:10:45]} 1/2-1/2

[Event "Slovakian-ch Youth 2022"]
[Site "Lubovna"]
[Date "2022.05.23"]
[Round "3.30"]
[White "Brnusak, Simon"]
[Black "Shykhnenko, Hryhorii"]
[Result "0-1"]
[ECO "C42"]
[WhiteElo "1090"]
[BlackElo "1284"]
[Annotator "NA RC COMBH"]
[PlyCount "108"]
[EventDate "2022.05.22"]
[EventCountry "SVK"]
[SourceTitle "playchess.com"]
[Source "ChessBase"]
[SourceQuality "1"]
[TimeControl "40/5400+30:1800+30"]

1. e4 {[%emt 0:00:06]} e5 {[%emt 0:00:04]} 2. Nf3 {[%emt 0:01:25]} Nf6 {[%emt 0:00:06]} 3. Nxe5 {[%emt 0:01:26]} Nc6 {[%emt 0:00:06]} 4. d4 {[%emt 0:01:30]} Nxe5 {[%emt 0:03:16]} 5. dxe5 {[%emt 0:00:34]} Nxe4 {[%emt 0:00:12]} 6. Nc3 {[%emt 0:01:50]} Nxc3 {[%emt 0:01:05]} 7. bxc3 {[%emt 0:08:09]} Bc5 {[%emt 0:00:26]} 8. Bd3 {[%emt 0:02:16]} Qe7 {[%emt 0:01:19]} 9. O-O {[%emt 0:00:57]} d6 {[%emt 0:03:36]} 10. exd6 {[%emt 0:03:19]} Qxd6 {[%emt 0:02:09]} 11. Re1+ {[%emt 0:03:24]} Be6 {[%emt 0:00:31]} 12. Be3 {[%emt 0:02:12]} O-O-O {[%emt 0:05:20]} 13. Rb1 {[%emt 0:04:30]} Bxe3 {[%emt 0:05:44]} 14. Rxe3 {[%emt 0:02:09]} Bxa2 {[%emt 0:03:40]} 15. Ra1 {[%emt 0:01:28]} Qd5 {[%emt 0:13:37]} 16. Qe2 {[%emt 0:13:18]} Qa5 {[%emt 0:12:47]} 17. Qg4+ {[%emt 0:11:07]} Kb8 {[%emt 0:04:46]} 18. Qb4 {[%emt 0:04:07]} Qxb4 {[%emt 0:01:45]} 19. cxb4 {[%emt 0:00:54]} Be6 {[%emt 0:01:19]} 20. f4 {[%emt 0:01:54]} Rd4 {[%emt 0:02:44]} 21. f5 {[%emt 0:03:26]} Bc4 {[%emt 0:04:06]} 22. Rae1 {[%emt 0:03:02]} Bxd3 {[%emt 0:04:10]} 23. Re8+ {[%emt 0:00:35]} Rd8 {[%emt 0:00:11]} 24. Rxd8+ {[%emt 0:01:02]} Rxd8 {[%emt 0:00:07]} 25. cxd3 {[%emt 0:00:47]} b6 {[%emt 0:00:46]} 26. Re7 {[%emt 0:04:24]} Rf8 {[%emt 0:01:34]} 27. Kf2 {[%emt 0:01:43]} Kc8 {[%emt 0:00:31]} 28. g4 {[%emt 0:01:01]} g6 {[%emt 0:02:24]} 29. f6 {[%emt 0:01:26]} a6 {[%emt 0:02:40]} 30. d4 {[%emt 0:01:15]} a5 {[%emt 0:09:48]} 31. b5 {[%emt 0:02:30]} Kd8 {[%emt 0:00:31]} 32. Ke3 {[%emt 0:02:15]} Re8 {[%emt 0:00:40]} 33. Rxe8+ {[%emt 0:02:01]} Kxe8 {[%emt 0:00:08]} 34. Ke4 {[%emt 0:00:13]} a4 {[%emt 0:00:21]} 35. Kd3 {[%emt 0:01:16]} Kd7 {[%emt 0:00:52]} 36. d5 {[%emt 0:01:19]} Kd6 {[%emt 0:01:09]} 37. Kd4 {[%emt 0:01:13]} a3 {[%emt 0:00:28]} 38. Kc3 {[%emt 0:00:59]} a2 {[%emt 0:00:27]} 39. Kb2 {[%emt 0:00:14]} a1=Q+ {[%emt 0:00:10]} 40. Kxa1 {[%emt 0:00:13]} Kxd5 {[%emt 0:00:04]} 41. Kb2 {[%emt 0:30:44]} Kc4 {[%emt 0:30:28]} 42. Kc2 {[%emt 0:00:31]} Kxb5 {[%emt 0:00:14]} 43. Kd3 {[%emt 0:00:27]} Kc5 {[%emt 0:01:25]} 44. Kc3 {[%emt 0:00:43]} Kd5 {[%emt 0:00:16]} 45. Kd3 {[%emt 0:00:30]} c5 {[%emt 0:00:06]} 46. Kc3 {[%emt 0:00:48]} c4 {[%emt 0:01:39]} 47. h3 {[%emt 0:00:36]} g5 {[%emt 0:00:26]} 48. Kc2 {[%emt 0:01:59]} Kd4 {[%emt 0:00:15]} 49. Kb2 {[%emt 0:00:37]} Kd3 {[%emt 0:00:29]} 50. Kc1 {[%emt 0:00:30]} c3 {[%emt 0:00:05]} 51. Kb1 {[%emt 0:00:45]} c2+ {[%emt 0:00:05]} 52. Kc1 {[%emt 0:00:23]} h6 {[%emt 0:00:05]} 53. h4 {[%emt 0:00:26]} gxh4 {[%emt 0:00:10]} 54. g5 {[%emt 0:00:17]} hxg5 {[%emt 0:00:23]} 0-1

[Event "Slovakian-ch Youth 2022"]
[Site "Lubovna"]
[Date "2022.05.23"]
[Round "3.31"]
[White "Dvorak, Alfred"]
[Black "Gobl, Fabian"]
[Result "1-0"]
[ECO "D02"]
[WhiteElo "1239"]
[BlackElo "1017"]
[Annotator "NA RC COMBH"]
[PlyCount "81"]
[EventDate "2022.05.22"]
[EventCountry "SVK"]
[SourceTitle "playchess.com"]
[Source "ChessBase"]
[SourceQuality "1"]
[TimeControl "40/5400+30:1800+30"]

1. d4 {[%emt 0:00:03]} d5 {[%emt 0:00:17]} 2. Nf3 {[%emt 0:00:13]} Nc6 {[%emt 0:00:47]} 3. Bf4 {[%emt 0:00:18]} Bf5 {[%emt 0:02:27]} 4. c3 {[%emt 0:01:03]} e6 {[%emt 0:00:34]} 5. e3 {[%emt 0:00:26]} Bg4 {[%emt 0:01:31]} 6. Nbd2 {[%emt 0:00:26]} Bxf3 {[%emt 0:03:59]} 7. Nxf3 {[%emt 0:00:24]} Nf6 {[%emt 0:00:29]} 8. Bb5 {[%emt 0:00:55]} Bd6 {[%emt 0:06:22]} 9. Bxd6 {[%emt 0:02:24]} Qxd6 {[%emt 0:00:35]} 10. Ne5 {[%emt 0:00:51]} O-O {[%emt 0:00:41]} 11. Bxc6 {[%emt 0:01:54]} bxc6 {[%emt 0:00:25]} 12. Qa4 {[%emt 0:00:44]} c5 {[%emt 0:04:08]} 13. Rc1 {[%emt 0:02:28]} c4 {[%emt 0:02:47]} 14. O-O {[%emt 0:00:46]} Rfc8 {[%emt 0:11:44]} 15. b3 {[%emt 0:01:49]} cxb3 {[%emt 0:00:48]} 16. axb3 {[%emt 0:00:17]} c5 {[%emt 0:00:45]} 17. Rfd1 {[%emt 0:02:40]} Rc7 {[%emt 0:05:09]} 18. c4 {[%emt 0:02:41]} cxd4 {[%emt 0:04:19]} 19. exd4 {[%emt 0:00:29]} dxc4 {[%emt 0:00:55]} 20. bxc4 {[%emt 0:00:30]} Nd7 {[%emt 0:03:09]} 21. Nxd7 {[%emt 0:01:45]} Rxd7 {[%emt 0:00:11]} 22. Rd2 {[%emt 0:04:27]} Rad8 {[%emt 0:02:26]} 23. Rcd1 {[%emt 0:01:45]} h6 {[%emt 0:03:27]} 24. Qb3 {[%emt 0:04:43]} Qb6 {[%emt 0:01:59]} 25. Qc3 {[%emt 0:05:00]} e5 {[%emt 0:01:55]} 26. d5 {[%emt 0:01:16]} Qc5 {[%emt 0:02:58]} 27. Rc2 {[%emt 0:01:35]} a5 {[%emt 0:03:34]} 28. Qxe5 {[%emt 0:01:13]} Re7 {[%emt 0:04:27]} 29. Qc3 {[%emt 0:01:51]} Rde8 {[%emt 0:02:15]} 30. h3 {[%emt 0:02:28]} Rd7 {[%emt 0:03:23]} 31. Ra1 {[%emt 0:01:26]} Ra8 {[%emt 0:01:03]} 32. Qe3 {[%emt 0:02:44]} Qc7 {[%emt 0:01:22]} 33. Qd4 {[%emt 0:01:14]} Qd6 {[%emt 0:00:50]} 34. Rca2 {[%emt 0:01:45]} Rda7 {[%emt 0:00:50]} 35. c5 {[%emt 0:02:03]} Qd7 {[%emt 0:00:35]} 36. d6 {[%emt 0:02:02]} Qc6 {[%emt 0:03:19]} 37. Rb2 {[%emt 0:02:32]} Ra6 {[%emt 0:04:56]} 38. Rab1 {[%emt 0:02:17]} Re8 {[%emt 0:02:13]} 39. Rb8 {[%emt 0:03:17]} Rxb8 {[%emt 0:02:44]} 40. Rxb8+ {[%emt 0:00:07]} Kh7 {[%emt 0:00:09]} 41. d7 {[%emt 0:31:01]} 1-0

[Event "Slovakian-ch Youth 2022"]
[Site "Lubovna"]
[Date "2022.05.23"]
[Round "3.32"]
[White "Boros, David"]
[Black "Krajci Hugo"]
[Result "1-0"]
[ECO "C53"]
[WhiteElo "1173"]
[BlackElo "1178"]
[Annotator "NA RC COMBH"]
[PlyCount "29"]
[EventDate "2022.05.22"]
[EventCountry "SVK"]
[SourceTitle "playchess.com"]
[Source "ChessBase"]
[SourceQuality "1"]
[TimeControl "40/5400+30:1800+30"]

1. e4 {[%emt 0:00:05]} e5 {[%emt 0:00:08]} 2. Nf3 {[%emt 0:00:06]} Nc6 {[%emt 0:00:05]} 3. Bc4 {[%emt 0:00:16]} Bc5 {[%emt 0:00:09]} 4. c3 {[%emt 0:00:11]} d6 {[%emt 0:01:19]} 5. d4 {[%emt 0:04:31]} Bb6 {[%emt 0:00:44]} 6. dxe5 {[%emt 0:05:30]} dxe5 {[%emt 0:00:18]} 7. Qxd8+ {[%emt 0:02:37]} Kxd8 {[%emt 0:00:35]} 8. Bxf7 {[%emt 0:04:22]} Nf6 {[%emt 0:03:14]} 9. Bg5 {[%emt 0:07:28]} Ke7 {[%emt 0:02:15]} 10. Bd5 {[%emt 0:04:49]} Rf8 {[%emt 0:01:46]} 11. Nbd2 {[%emt 0:05:22]} Kd6 {[%emt 0:06:46]} 12. Nc4+ {[%emt 0:03:49]} Kc5 {[%emt 0:02:09]} 13. Be3+ {[%emt 0:25:45]} Kb5 {[%emt 0:00:31]} 14. a4+ {[%emt 0:01:45]} Ka6 {[%emt 0:00:19]} 15. b4 {[%emt 0:00:31]} 1-0

[Event "Slovakian-ch Youth 2022"]
[Site "Lubovna"]
[Date "2022.05.23"]
[Round "3.33"]
[White "Hudak, Michal"]
[Black "Papay Aurel"]
[Result "1-0"]
[ECO "D02"]
[WhiteElo "1169"]
[BlackElo "1000"]
[Annotator "NA COMBH"]
[PlyCount "59"]
[EventDate "2022.05.22"]
[EventCountry "SVK"]
[SourceTitle "playchess.com"]
[Source "ChessBase"]
[SourceQuality "1"]
[TimeControl "40/5400+30:1800+30"]

1. Nf3 {[%emt 0:00:09]} Nc6 {[%emt 0:02:45]} 2. d4 {[%emt 0:00:51]} d5 {[%emt 0:00:28]} 3. Bf4 {[%emt 0:01:06]} Nf6 {[%emt 0:01:33]} 4. e3 {[%emt 0:00:47]} a6 {[%emt 0:02:41]} 5. Nbd2 {[%emt 0:00:54]} Bf5 {[%emt 0:00:18]} 6. Bd3 {[%emt 0:00:35]} Bg6 {[%emt 0:05:33]} 7. O-O {[%emt 0:00:55]} e6 {[%emt 0:01:23]} 8. a3 {[%emt 0:03:23]} Bd6 {[%emt 0:00:46]} 9. Bxd6 {[%emt 0:03:11]} Qxd6 {[%emt 0:00:16]} 10. Qe2 {[%emt 0:04:02]} Bxd3 {[%emt 0:01:18]} 11. Qxd3 {[%emt 0:00:30]} h6 {[%emt 0:01:06]} 12. Rac1 {[%emt 0:02:14]} O-O {[%emt 0:01:52]} 13. c4 {[%emt 0:00:34]} b6 {[%emt 0:05:14]} 14. Rc2 {[%emt 0:04:37]} Ne7 {[%emt 0:09:28]} 15. Rfc1 {[%emt 0:06:09]} c5 {[%emt 0:14:49]} 16. dxc5 {[%emt 0:05:05]} Qxc5 {[%emt 0:00:56]} 17. b4 {[%emt 0:02:26]} dxc4 {[%emt 0:05:48]} 18. Rxc4 {[%emt 0:00:53]} Qh5 {[%emt 0:01:19]} 19. Ne4 {[%emt 0:01:27]} Nxe4 {[%emt 0:00:57]} 20. Qxe4 {[%emt 0:00:25]} Rfd8 {[%emt 0:01:37]} 21. Rd4 {[%emt 0:02:07]} Nf5 {[%emt 0:06:00]} 22. Rxd8+ {[%emt 0:03:45]} Rxd8 {[%emt 0:00:29]} 23. Qe5 {[%emt 0:08:48]} Rd5 {[%emt 0:01:43]} 24. Qb8+ {[%emt 0:03:49]} Kh7 {[%emt 0:00:28]} 25. e4 {[%emt 0:01:12]} Rd7 {[%emt 0:11:16]} 26. exf5 {[%emt 0:00:46]} Qxf5 {[%emt 0:01:47]} 27. Qxb6 {[%emt 0:02:08]} Qd3 {[%emt 0:22:10]} 28. h3 {[%emt 0:41:42]} Qxa3 {[%emt 0:00:30]} 29. Qc6 {[%emt 0:00:30]} Qd3 {[%emt 0:00:30]} 30. Ne5 {[%emt 0:00:30]} 1-0

[Event "Slovakian-ch Youth 2022"]
[Site "Lubovna"]
[Date "2022.05.23"]
[Round "3.34"]
[White "Janoska Peter"]
[Black "Kriska Alexander"]
[Result "1-0"]
[ECO "C29"]
[WhiteElo "1272"]
[BlackElo "1046"]
[Annotator "NA RC COMBH"]
[PlyCount "31"]
[EventDate "2022.05.22"]
[EventCountry "SVK"]
[SourceTitle "playchess.com"]
[Source "ChessBase"]
[SourceQuality "1"]
[TimeControl "40/5400+30:1800+30"]

1. e4 {[%emt 0:00:12]} e5 {[%emt 0:00:12]} 2. Nc3 {[%emt 0:00:26]} Nf6 {[%emt 0:00:31]} 3. f4 {[%emt 0:00:35]} d5 {[%emt 0:01:16]} 4. fxe5 {[%emt 0:00:30]} Nxe4 {[%emt 0:00:33]} 5. Qf3 {[%emt 0:00:53]} Nxc3 {[%emt 0:01:32]} 6. bxc3 {[%emt 0:01:08]} Be7 {[%emt 0:01:18]} 7. Nh3 {[%emt 0:03:38]} O-O {[%emt 0:02:12]} 8. Nf4 {[%emt 0:02:38]} c6 {[%emt 0:04:09]} 9. d4 {[%emt 0:04:03]} Nd7 {[%emt 0:02:30]} 10. Bd3 {[%emt 0:05:50]} Re8 {[%emt 0:03:42]} 11. O-O {[%emt 0:02:22]} Nb6 {[%emt 0:05:19]} 12. Qh5 {[%emt 0:10:09]} g6 {[%emt 0:06:27]} 13. Nxg6 {[%emt 0:06:01]} fxg6 {[%emt 0:10:07]} 14. Bxg6 {[%emt 0:00:17]} hxg6 {[%emt 0:10:37]} 15. Qxg6+ {[%emt 0:00:15]} Kh8 {[%emt 0:00:24]} 16. Rf7 {[%emt 0:00:43]} 1-0

[Event "Slovakian-ch Youth 2022"]
[Site "Lubovna"]
[Date "2022.05.23"]
[Round "3.35"]
[White "Slivka Martin"]
[Black "Diachenko Mykhailo"]
[Result "1-0"]
[ECO "C42"]
[WhiteElo "1000"]
[BlackElo "1000"]
[Annotator "NA RC COMBH"]
[PlyCount "129"]
[EventDate "2022.05.22"]
[EventCountry "SVK"]
[SourceTitle "playchess.com"]
[Source "ChessBase"]
[SourceQuality "1"]
[TimeControl "40/5400+30:1800+30"]

1. e4 {[%emt 0:00:11]} e5 {[%emt 0:00:05]} 2. Nf3 {[%emt 0:00:41]} Nf6 {[%emt 0:00:19]} 3. Nxe5 {[%emt 0:00:55]} d6 {[%emt 0:00:09]} 4. Nf3 {[%emt 0:00:25]} Nxe4 {[%emt 0:00:08]} 5. Qe2 {[%emt 0:01:16]} Qe7 {[%emt 0:00:11]} 6. d3 {[%emt 0:00:47]} Nf6 {[%emt 0:01:38]} 7. Bg5 {[%emt 0:07:36]} Qxe2+ {[%emt 0:00:17]} 8. Bxe2 {[%emt 0:00:21]} Be7 {[%emt 0:00:09]} 9. Nbd2 {[%emt 0:01:46]} h6 {[%emt 0:00:21]} 10. Bh4 {[%emt 0:00:30]} b6 {[%emt 0:00:44]} 11. Nf1 {[%emt 0:01:51]} O-O {[%emt 0:00:41]} 12. Bxf6 {[%emt 0:03:35]} Bxf6 {[%emt 0:00:33]} 13. Rb1 {[%emt 0:01:46]} Re8 {[%emt 0:00:50]} 14. Ng3 {[%emt 0:00:58]} Bb7 {[%emt 0:01:04]} 15. O-O {[%emt 0:02:02]} Bd5 {[%emt 0:00:42]} 16. c4 {[%emt 0:05:18]} Bc6 {[%emt 0:00:43]} 17. Nh5 {[%emt 0:03:29]} Rxe2 {[%emt 0:01:26]} 18. Nxf6+ {[%emt 0:01:13]} gxf6 {[%emt 0:00:18]} 19. Nd4 {[%emt 0:00:51]} Rd2 {[%emt 0:00:48]} 20. Rfd1 {[%emt 0:01:13]} Rxd1+ {[%emt 0:00:16]} 21. Rxd1 {[%emt 0:00:43]} Bd7 {[%emt 0:00:40]} 22. b3 {[%emt 0:00:52]} Be6 {[%emt 0:00:20]} 23. Re1 {[%emt 0:01:18]} Bg4 {[%emt 0:00:50]} 24. Re8+ {[%emt 0:01:00]} Kg7 {[%emt 0:00:43]} 25. Nc6 {[%emt 0:03:11]} Bd7 {[%emt 0:00:52]} 26. Rxb8 {[%emt 0:00:35]} Bxc6 {[%emt 0:00:18]} 27. Rxa8 {[%emt 0:00:33]} Bxa8 {[%emt 0:00:15]} 28. f4 {[%emt 0:00:43]} d5 {[%emt 0:00:27]} 29. g4 {[%emt 0:00:43]} dxc4 {[%emt 0:01:10]} 30. dxc4 {[%emt 0:00:33]} Kg6 {[%emt 0:00:14]} 31. h3 {[%emt 0:00:50]} f5 {[%emt 0:00:18]} 32. Kf2 {[%emt 0:01:24]} fxg4 {[%emt 0:01:01]} 33. hxg4 {[%emt 0:00:45]} f5 {[%emt 0:00:10]} 34. Kg3 {[%emt 0:01:27]} Be4 {[%emt 0:00:58]} 35. b4 {[%emt 0:02:48]} fxg4 {[%emt 0:00:16]} 36. Kxg4 {[%emt 0:00:51]} h5+ {[%emt 0:00:17]} 37. Kh4 {[%emt 0:01:17]} Bf3 {[%emt 0:00:14]} 38. Kg3 {[%emt 0:01:05]} Bg4 {[%emt 0:00:10]} 39. Kh4 {[%emt 0:01:02]} Kf5 {[%emt 0:00:14]} 40. Kg3 {[%emt 0:00:38]} Ke4 {[%emt 0:00:06]} 41. a3 {[%emt 0:34:09]} c6 {[%emt 0:30:24]} 42. b5 {[%emt 0:01:38]} c5 {[%emt 0:00:38]} 43. a4 {[%emt 0:00:36]} Kd4 {[%emt 0:00:08]} 44. Kf2 {[%emt 0:00:46]} Kxc4 {[%emt 0:00:26]} 45. Ke3 {[%emt 0:00:26]} Kb4 {[%emt 0:00:11]} 46. Ke4 {[%emt 0:00:34]} Kxa4 {[%emt 0:00:38]} 47. f5 {[%emt 0:00:23]} Bxf5+ {[%emt 0:00:47]} 48. Kxf5 {[%emt 0:00:08]} Kxb5 {[%emt 0:00:16]} 49. Ke4 {[%emt 0:00:35]} h4 {[%emt 0:00:22]} 50. Kf3 {[%emt 0:00:19]} a5 {[%emt 0:00:13]} 51. Kg4 {[%emt 0:00:30]} a4 {[%emt 0:00:08]} 52. Kxh4 {[%emt 0:00:09]} a3 {[%emt 0:00:09]} 53. Kg3 {[%emt 0:00:38]} a2 {[%emt 0:00:08]} 54. Kf4 {[%emt 0:00:29]} a1=Q {[%emt 0:00:20]} 55. Ke4 {[%emt 0:00:15]} Qf1 {[%emt 0:00:21]} 56. Ke5 {[%emt 0:00:20]} Kc6 {[%emt 0:00:18]} 57. Ke4 {[%emt 0:00:41]} c4 {[%emt 0:00:16]} 58. Ke5 {[%emt 0:00:44]} Qf3 {[%emt 0:00:11]} 59. Ke6 {[%emt 0:00:36]} Qe4+ {[%emt 0:00:15]} 60. Kf6 {[%emt 0:00:32]} Kd7 {[%emt 0:00:34]} 61. Kf7 {[%emt 0:01:21]} Qf5+ {[%emt 0:00:49]} 62. Kg8 {[%emt 0:00:40]} Ke7 {[%emt 0:00:22]} 63. Kg7 {[%emt 0:00:11]} Qg5+ {[%emt 0:00:13]} 64. Kh7 {[%emt 0:00:19]} Kf7 {[%emt 0:00:44]} 65. Kh8 {[%emt 0:00:16]} 1-0

[Event "Slovakian-ch Youth 2022"]
[Site "Lubovna"]
[Date "2022.05.23"]
[Round "3.36"]
[White "Drabek Matej"]
[Black "Stavac Teodor"]
[Result "1-0"]
[ECO "C57"]
[WhiteElo "1000"]
[BlackElo "1000"]
[Annotator "NA RC COMBH"]
[PlyCount "63"]
[EventDate "2022.05.22"]
[EventCountry "SVK"]
[SourceTitle "playchess.com"]
[Source "ChessBase"]
[SourceQuality "1"]
[TimeControl "40/5400+30:1800+30"]

1. e4 {[%emt 0:00:03]} e5 {[%emt 0:04:18]} 2. Nf3 {[%emt 0:00:10]} Nc6 {[%emt 0:00:12]} 3. Bc4 {[%emt 0:00:17]} Nf6 {[%emt 0:00:15]} 4. Ng5 {[%emt 0:00:33]} d5 {[%emt 0:01:13]} 5. exd5 {[%emt 0:00:21]} Nxd5 {[%emt 0:00:13]} 6. Nc3 {[%emt 0:00:44]} Be6 {[%emt 0:01:27]} 7. Nf3 {[%emt 0:00:45]} Bd6 {[%emt 0:00:32]} 8. Bxd5 {[%emt 0:00:53]} Bxd5 {[%emt 0:00:24]} 9. Nxd5 {[%emt 0:00:15]} Bc5 {[%emt 0:00:22]} 10. Nc3 {[%emt 0:00:43]} O-O {[%emt 0:00:42]} 11. O-O {[%emt 0:00:11]} Re8 {[%emt 0:00:13]} 12. d3 {[%emt 0:00:44]} Bd4 {[%emt 0:03:15]} 13. Re1 {[%emt 0:02:17]} Bxc3 {[%emt 0:00:37]} 14. bxc3 {[%emt 0:00:26]} e4 {[%emt 0:02:33]} 15. Ng5 {[%emt 0:01:10]} h6 {[%emt 0:01:03]} 16. Nxe4 {[%emt 0:00:47]} Qh4 {[%emt 0:08:26]} 17. h3 {[%emt 0:03:14]} Ne5 {[%emt 0:00:31]} 18. c4 {[%emt 0:02:07]} Qf6 {[%emt 0:01:24]} 19. Nxf6+ {[%emt 0:00:19]} gxf6 {[%emt 0:00:51]} 20. Bb2 {[%emt 0:00:59]} Rad8 {[%emt 0:00:31]} 21. Bxe5 {[%emt 0:00:23]} fxe5 {[%emt 0:00:16]} 22. Qg4+ {[%emt 0:01:02]} Kf8 {[%emt 0:00:19]} 23. Qh5 {[%emt 0:00:27]} f6 {[%emt 0:00:32]} 24. Qxh6+ {[%emt 0:00:25]} Kf7 {[%emt 0:00:19]} 25. Rab1 {[%emt 0:00:42]} b6 {[%emt 0:00:32]} 26. Qh7+ {[%emt 0:00:18]} Ke6 {[%emt 0:00:18]} 27. Qxc7 {[%emt 0:01:00]} Rc8 {[%emt 0:00:22]} 28. Qxa7 {[%emt 0:00:32]} Rb8 {[%emt 0:00:14]} 29. Rxb6+ {[%emt 0:00:21]} Kf5 {[%emt 0:00:21]} 30. Rxb8 {[%emt 0:00:29]} Kg5 {[%emt 0:00:28]} 31. Qh7 {[%emt 0:00:30]} Kf4 {[%emt 0:00:16]} 32. Kh2 {[%emt 0:00:27]} 1-0

[Event "Slovakian-ch Youth 2022"]
[Site "Lubovna"]
[Date "2022.05.23"]
[Round "4.1"]
[White "Zetocha, Adrian"]
[Black "Gyerpal, Adrian"]
[Result "1/2-1/2"]
[ECO "D46"]
[WhiteElo "2331"]
[BlackElo "2171"]
[Annotator "TA"]
[PlyCount "79"]
[EventDate "2022.05.22"]
[EventCountry "SVK"]
[SourceTitle "playchess.com"]
[Source "ChessBase"]
[SourceQuality "1"]
[TimeControl "40/5400+30:1800+30"]

{[%evp 22,79,12,12,18,15,15,10,11,0,0,0,0,0,0,0,0,0,0,0,0,0,0,5,0,-24,17,17,16,14,28,33,36,34,89,14,11,14,22,22,22,0,0,0,0,0,0,0,0,-8,0,-15,-16,-73,-66,-66,-70,-79,-28,-28]} 1. d4 {[%emt 0:00:10]} d5 {[%emt 0:00:07]} 2. c4 {[%emt 0:00:11]} c6 {[%emt 0:00:06]} 3. e3 {[%emt 0:00:13]} Nf6 {[%emt 0:00:45]} 4. Nc3 {[%emt 0:00:07]} e6 {[%emt 0:00:16]} 5. Nf3 {[%emt 0:00:11]} Nbd7 {[%emt 0:00:19]} 6. Qc2 {[%emt 0:00:10]} Bd6 {[%emt 0:00:11]} 7. Bd3 {[%emt 0:00:10]} O-O {[%emt 0:00:42]} 8. O-O {[%emt 0:01:33]} dxc4 {[%emt 0:00:13]} 9. Bxc4 {[%emt 0:00:07]} b5 {[%emt 0:00:05]} 10. Be2 {[%emt 0:00:09]} Bb7 {[%emt 0:01:12]} 11. Rd1 {[%emt 0:00:08] 11.e4 gains popularity.} Qc7 {[%emt 0:02:08]} 12. e4 {[%emt 0:00:15]} e5 {[%emt 0:00:22] D46: Semi-Slav: 5 e3 Nbd7 6 Bd3, Black avoids the Meran.} 13. Bg5 {[%emt 0:00:18]} exd4 $1 {[%emt 0:02:04]} 14. Rxd4 {[%emt 0:00:10] Black should prevent Bxf6.} Ne5 {[%emt 0:00:56] The position is equal.} 15. g3 {[%emt 0:00:11]} Bc5 {[%emt 0:00:58] [#] Strongly threatening ...Nxf3+.} 16. Rd2 {[%emt 0:00:15]} Nfg4 {[%emt 0:01:30]} 17. Nd1 {[%emt 0:00:21]} Bb4 {[%emt 0:01:00] 17...Bb6 is not played anymore.} 18. Rd4 {[%emt 0:00:18]} Ba5 {[%emt 0:00:33]} 19. Nxe5 $1 {[%emt 0:37:20]} Qxe5 {[%emt 0:01:23]} 20. Rd7 {[%emt 0:00:07] [#] Bf4 is the strong threat.} Bc8 {[%emt 0:01:31]} 21. Bf4 {[%emt 0:00:34]} Qh5 {[%emt 0:01:02]} 22. Bxg4 {[%emt 0:00:22] Active counter play!} Qxg4 {[%emt 0:00:11] [#]} 23. Rd6 $146 {[%emt 0:03:58]} ({Predecessor:} 23. Rd3 Be6 24. a4 Qg6 25. Rd6 Rac8 26. Rxc6 b4 27. Rc1 h6 28. Qd3 Rxc6 29. Rxc6 Qh5 30. Ne3 Qf3 31. Rd6 g5 32. Bxg5 {½-½ (34) Murray,T (2554)-Straka,Z (2556) ICCF email 2014}) 23... Bc7 {[%emt 0:13:36]} 24. Ne3 {[%emt 0:01:09]} Qf3 {[%emt 0:01:28]} 25. Qxc6 {[%emt 0:01:06]} Bxd6 {[%emt 0:02:01]} 26. Bxd6 {[%emt 0:00:27]} Bh3 {[%emt 0:06:30] And now ...Rac8 would win.} 27. Bxf8 {[%emt 0:00:26]} Rxf8 {[%emt 0:00:41]} (27... Rc8 $1 $14 28. Qd6 (28. Qxb5 Rc2 $14) 28... Rxf8) 28. Rc1 {[%emt 0:20:18]} (28. Rd1 $16) 28... h6 $11 {[%emt 0:07:51]} 29. e5 {[%emt 0:04:17]} Qe2 {[%emt 0:02:45]} 30. Qc2 {[%emt 0:00:21]} Qh5 {[%emt 0:02:13]} 31. f4 {[%emt 0:05:58]} Rc8 $1 {[%emt 0:06:08]} 32. Qd1 {[%emt 0:00:42]} Rxc1 {[%emt 0:00:57]} 33. Qxc1 {[%emt 0:00:02][%mdl 4096] Endgame KQB-KQN} Qe2 {[%emt 0:00:23]} 34. a3 {[%emt 0:06:10]} g6 {[%emt 0:14:09]} 35. Qc3 {[%emt 0:04:53]} a5 {[%emt 0:03:56][%cal Ob5b4]} 36. b4 {[%emt 0:00:45]} a4 {[%emt 0:06:42]} 37. g4 {[%emt 0:07:53]} (37. f5 $11 {remains equal.}) 37... Bxg4 $17 {[%emt 0:06:16]} 38. Nxg4 {[%emt 0:00:12]} Qxg4+ {[%emt 0:00:07]} 39. Qg3 {[%emt 0:00:08]} Qd1+ {[%emt 0:04:26]} (39... Qe2 $17) 40. Kg2 {[%emt 0:00:16] Weighted Error Value: White=0.14 (very precise) /Black=0.06 (flawless)} 1/2-1/2